Cogmind - Beta 13 @@@ ROGUE MODE // 2024.04.11 @ 21:32:59 Player: Exceptionally Mediocre Result: Smashed by cave-in Performance ------------- Evolutions (0) 0 Regions Visited (4) 800 Robots Destroyed (33) 165 Value Destroyed (537) 537 Prototype IDs (23) 460 Alien Tech Used (0) 0 Bonus (300) 300 TOTAL SCORE: 2262 Bonus ------- Aligned with FarCom 300 Cogmind --------- Core Integrity 0/250 Matter 242/300 Energy 100/100 System Corruption 4% Temperature Cool (0) Movement Rolling (135) Ox3 Location -9/Mines Parts ------- > --- POWER (1) -------- (None) > --- PROPULSION (2) --- Wheel Compact Wheel > --- UTILITY (2) ------ Huge Storage Unit Core Shielding > --- WEAPON (2) ------- Medium Laser Grenade Launcher > --- INVENTORY (25) --- Ion Engine Light Ion Engine Light Ion Engine Wheel Wheel Compact Wheel Heat Sink Heat Sink Improved Heat Sink Humpback Lightpack 2.0 Medium Matter Pod (100) Sensor Array Targeting Computer Propulsion Shielding Particle Gun Light Assault Rifle Light Assault Rifle Grenade Launcher Mining Claw Mining Claw Peak State ------------ > --- POWER ------------ Light Ion Engine > --- PROPULSION ------- Wheel Compact Wheel > --- UTILITY ---------- Huge Storage Unit Core Shielding > --- WEAPON ----------- Medium Laser Grenade Launcher > --- INVENTORY -------- Ion Engine Light Ion Engine Light Ion Engine Wheel Wheel Wheel Compact Wheel Heat Sink Heat Sink Improved Heat Sink Lightpack 2.0 Medium Matter Pod Sensor Array Targeting Computer Propulsion Shielding Particle Gun Light Assault Rifle Light Assault Rifle Grenade Launcher Mining Claw Mining Claw [Rating: 12] Favorites ----------- Power Light Ion Engine Engine Light Ion Engine Propulsion Compact Wheel Wheel Compact Wheel Utility Improved Terrain Scanner Device Improved Terrain Scanner Storage Huge Storage Unit Processor Targeting Computer Protection Core Shielding Weapon Light Assault Rifle Energy Gun Medium Laser Ballistic Gun Light Assault Rifle Launcher Grenade Launcher Build | -11 -10 -10 -10 -9 ------- Run | Yrd Mat Min Exi Min Slots Evolved . | . . . . . Power . | . . . . . Propulsion . | . . . . . Utility . | . . . . . Weapon . | . . . . . Parts Attached 27 | 8 14 4 . 1 Power 7 | 2 4 1 . . Engine 7 | 2 4 1 . . Core . | . . . . . Reactor . | . . . . . Propulsion 6 | 2 3 . . 1 Treads . | . . . . . Leg . | . . . . . Wheel 6 | 2 3 . . 1 Hover . | . . . . . Flight . | . . . . . Utility 6 | 2 2 2 . . Device 1 | 1 . . . . Storage 3 | 1 2 . . . Processor 1 | . . 1 . . Hackware . | . . . . . Protection 1 | . . 1 . . Artifact . | . . . . . Weapon 8 | 2 5 1 . . Energy Gun 1 | . 1 . . . Energy Cannon . | . . . . . Ballistic Gun 6 | 2 4 . . . Ballistic Cannon . | . . . . . Launcher 1 | . . 1 . . Special Weapon . | . . . . . Impact Weapon . | . . . . . Slashing Weapon . | . . . . . Piercing Weapon . | . . . . . Special Melee Weapon . | . . . . . Unidentified Prototypes . | . . . . . Parts Lost 5 | . 2 1 . 2 Power 3 | . 1 1 . 1 Propulsion 2 | . 1 . . 1 Utility . | . . . . . Weapon . | . . . . . Highest Loss Streak 2 | . 2 1 . 2 To Critical Strikes . | . . . . . Average Slot Usage (%) 99 | . 99 98 100 92 Engine 13 | . 13 12 14 14 Wheel 27 | . 27 28 28 21 Device 9 | . 14 1 . . Storage 14 | . 14 14 14 14 Protection 4 | . . 5 14 14 Energy Gun 8 | . 5 14 14 14 Ballistic Gun 14 | . 21 12 . . Launcher 4 | . . 1 14 14 Naked Turns . | . . . . . Heaviest Build 89 | 13 87 89 89 89 Greatest Support 26 | 26 26 26 26 26 Greatest Overweight (x) 3 | . 3 3 3 3 Average Overweight (x) 1 | . 1 3 3 3 Largest Inventory Capacity 25 | 8 25 25 25 25 Average Capacity 18 | 7 16 25 25 25 Most Carried 25 | 8 25 25 25 25 Average Carried 16 | 5 13 24 24 24 Final Capacity 25 | 8 25 25 25 25 Final Carried 25 | 8 25 24 25 24 Class Distribution -------------------- 100% | Mutant Dominant Class ---------------- Mutant | -10/Materials Mutant | -10/Mines Mutant | -10/Exiles Mutant | -9/Mines Resources | -11 -10 -10 -10 -9 ----------- Run | Yrd Mat Min Exi Min Matter Collected 622 | 253 316 43 10 . Remotely . | . . . . . Salvage Created 861 | 148 531 89 . 93 Parts 72 | 16 40 5 . 11 Haulers Intercepted 2 | . 2 . . . Recyclers Shooed . | . . . . . Parts Field Recycled . | . . . . . Retrieved Matter . | . . . . . Parts Self-Destructed . | . . . . . Prevented . | . . . . . Kills | -11 -10 -10 -10 -9 ------- Run | Yrd Mat Min Exi Min Combat Hostiles Destroyed 19 | . 12 2 . 5 Guns 14 | . 12 2 . . AOE 5 | . . . . 5 Classes Destroyed 8 | 3 4 . . 1 Worker 6 | 1 2 . . 3 Tunneler 3 | 3 . . . . Hauler 2 | . 2 . . . Recycler 1 | 1 . . . . Watcher 2 | . 2 . . . Swarmer 9 | . 6 . . 3 Grunt 9 | . 6 2 . 1 Brawler 1 | . . . . 1 Best Kill Streak 8 | 2 3 2 . 8 Combat Bots Only 5 | . 3 2 . 5 Max Kills in Single Turn 3 | 1 1 1 . 3 Gunslinging . | . . . . . Exploded 2 | . . . . 2 Melee . | . . . . . Uniques/NPCs Destroyed . | . . . . . Combat | -11 -10 -10 -10 -9 -------- Run | Yrd Mat Min Exi Min Hostile Shots Fired 89 | . 70 14 . 5 Missed 27 | . 20 4 . 3 Damage Taken 833 | . 532 153 . 148 Core 289 | . 204 17 . 68 Absorbed by Shields . | . . . . . Redirected to Shielding 17 | . . . . 17 Core Remaining (%) 100 | 100 . . . . Volleys Fired 97 | 12 70 10 . 5 Largest 2 | 2 2 2 . 1 Hottest 70 | 40 70 70 . 30 Shots Fired 188 | 24 139 20 . 5 Gun 183 | 24 139 20 . . Cannon . | . . . . . Launcher 5 | . . . . 5 Special . | . . . . . Kinetic 144 | 24 110 10 . . Thermal 39 | . 29 10 . . Explosive 5 | . . . . 5 Electromagnetic . | . . . . . Robot Hit Streak 12 | 4 12 8 . 3 Robot Miss Streak 4 | 2 4 4 . 1 Penetration Max . | . . . . . Secondary Targets 1 | . 1 . . . Max Gunslinging Chain 1 | . 1 . . . Shots Hit Robots 119 | 17 84 15 . 3 Core Hits 61 | 11 32 5 . 13 Critical Kills 2 | . 2 . . . Critical Parts Destroyed . | . . . . . Critical Strikes 4 | . 4 . . . Burn 2 | . 2 . . . Destroy 2 | . 2 . . . Melee Attacks . | . . . . . Impact . | . . . . . Slashing . | . . . . . Piercing . | . . . . . Sneak Attacks . | . . . . . Combat Hostiles . | . . . . . Follow-up Attacks . | . . . . . Damage Inflicted 1548 | 141 758 157 . 492 Guns 1056 | 141 758 157 . . Cannons . | . . . . . Explosions 492 | . . . . 492 Melee . | . . . . . Ramming . | . . . . . Kinetic 726 | 141 530 55 . . Thermal 330 | . 228 102 . . Explosive 492 | . . . . 492 Electromagnetic . | . . . . . Impact . | . . . . . Slashing . | . . . . . Piercing . | . . . . . Highest Corruption 1 | . 1 1 1 1 Average Corruption 1 | . 1 1 1 1 Corruption Purged . | . . . . . Corruption Blocked . | . . . . . Effects 9 | . 1 1 7 . Message Errors 1 | . . . 1 . Matter Fused 2 | . . 1 1 . Heat Flow Errors 1 | . . . 1 . Energy Discharges 3 | . . . 3 . Data Loss (minor) 1 | . 1 . . . Data Loss (major) 1 | . . . 1 . Overload Shots . | . . . . . Overflow Damage 53 | . . . . 53 Projectiles . | . . . . . Explosions 53 | . . . . 53 Melee . | . . . . . Knockbacks . | . . . . . Impact . | . . . . . Kinetic . | . . . . . Secondary . | . . . . . Self-Inflicted Damage . | . . . . . Shots . | . . . . . Rammed . | . . . . . Targets Rammed . | . . . . . Kicked . | . . . . . Crushed . | . . . . . Highest Temperature 215 | . 189 215 203 1 Average Temperature 68 | . 49 117 103 1 Received Heat Transfer 267 | . 171 90 . 6 Siege Activations . | . . . . . Robots Corrupted . | . . . . . Combat Hostiles . | . . . . . Parts Fried . | . . . . . Impact Corruptions . | . . . . . Robots Melted . | . . . . . Combat Hostiles . | . . . . . Parts Melted 2 | . 2 . . . Heat Transferred 1110 | . 814 296 . . Parts Sabotaged . | . . . . . Parts Stolen . | . . . . . Parts Stripped . | . . . . . Power Chain Reactions . | . . . . . Alert | -11 -10 -10 -10 -9 ------- Run | Yrd Mat Min Exi Min Peak Influence 265 | 25 265 40 . 178 Initial 16 | . 16 . . . Average 73 | 11 84 27 . 141 Maximum Alert Level 1 | . 1 . . . Low Security (%) 97 | 100 97 100 . 100 Level 1 2 | . 2 . . . Level 2 . | . . . . . Level 3 . | . . . . . Level 4 . | . . . . . Level 5 . | . . . . . High Security . | . . . . . Max Security . | . . . . . Squads Dispatched 2 | . 2 . . . Investigation 1 | . 1 . . . Extermination . | . . . . . Reinforcement 1 | . 1 . . . Assault . | . . . . . Garrison . | . . . . . Intercept . | . . . . . Searches Triggered . | . . . . . Construction Impeded . | . . . . . Haulers Reinforced . | . . . . . Active Scanning Responses . | . . . . . Cargo Convoy Interrupts . | . . . . . Stealth | -11 -10 -10 -10 -9 --------- Run | Yrd Mat Min Exi Min Distress Signals . | . . . . . Communications Jammed . | . . . . . Distress Signals . | . . . . . Times Spotted 29 | . 24 2 . 3 Peak Tracking Total 3 | . 3 2 . 2 Tactical Retreats . | . . . . . Traps | -11 -10 -10 -10 -9 ------- Run | Yrd Mat Min Exi Min Traps Triggered 3 | . 3 . . . Indirectly . | . . . . . Trap Hack Attempts . | . . . . . Triggered . | . . . . . Disarmed . | . . . . . Reprogrammed . | . . . . . Reused . | . . . . . Traps Extracted . | . . . . . Installed . | . . . . . Triggered . | . . . . . Machines | -11 -10 -10 -10 -9 ---------- Run | Yrd Mat Min Exi Min Machines Disabled 1 | . . . . 1 Max in Single Turn 1 | . . . . 1 Machines Repaired . | . . . . . Machines Dismantled . | . . . . . Machines Sabotaged . | . . . . . Overloaded Fab Kills . | . . . . . Hacking | -11 -10 -10 -10 -9 --------- Run | Yrd Mat Min Exi Min Machines Accessed 11 | . 7 . 4 . Terminals 6 | . 6 . . . Fabricators . | . . . . . Repair Stations . | . . . . . Recycling Units 1 | . 1 . . . Scanalyzers . | . . . . . Garrison Access . | . . . . . Total Hacks 53 | . 26 . 27 . Successful 39 | . 12 . 27 . Failed 14 | . 14 . . . Catastrophic 1 | . 1 . . . Database Lockouts . | . . . . . Manual 26 | . 25 . 1 . Terminals 25 | . 25 . . . Fabricators . | . . . . . Repair Stations . | . . . . . Recycling Units 1 | . 1 . . . Scanalyzers . | . . . . . Garrison Access . | . . . . . Terminal Hacks 28 | . 1 . 27 . Record 27 | . 1 . 26 . Derelict Proto ID Bank 1 | . . . 1 . Fabricator Hacks . | . . . . . Repair Station Hacks . | . . . . . Recycling Unit Hacks 1 | . 1 . . . Report Inventory 1 | . 1 . . . Scanalyzer . | . . . . . Garrison Access Hacks . | . . . . . Unauthorized Hacks 10 | . 10 . . . Terminals 10 | . 10 . . . Assimilate 4 | . 4 . . . Botnet 6 | . 6 . . . Fabricators . | . . . . . Repair Stations . | . . . . . Recycling Units . | . . . . . Scanalyzers . | . . . . . Garrison Access . | . . . . . Data Cores Recovered . | . . . . . Used . | . . . . . Hacking Detections 5 | . 5 . . . Full Trace Events 4 | . 4 . . . Feedback Events . | . . . . . Feedback Blocked . | . . . . . Robot Schematics Acquired . | . . . . . Robots Built . | . . . . . Authchips . | . . . . . Time . | . . . . . Total Robot Build Rating . | . . . . . Part Schematics Acquired . | . . . . . Parts Built . | . . . . . Authchips . | . . . . . Time . | . . . . . Total Part Build Rating . | . . . . . Parts Repaired . | . . . . . Time . | . . . . . Parts Recycled . | . . . . . Recycled Matter . | . . . . . Retrieved Matter . | . . . . . Retrieved Components . | . . . . . Parts Scanalyzed . | . . . . . Part Schematics Acquired . | . . . . . Parts Damaged . | . . . . . Bothacking | -11 -10 -10 -10 -9 ------------ Run | Yrd Mat Min Exi Min Used RIF Installer . | . . . . . Robots Hacked . | . . . . . Non-combat . | . . . . . Combat . | . . . . . Robot Hacks Applied . | . . . . . Relay Couplers Released . | . . . . . Fabnet Peak Effective % . | . . . . . Robots Rewired . | . . . . . Allies Hacked . | . . . . . Hacks Repelled . | . . . . . Allies | -11 -10 -10 -10 -9 -------- Run | Yrd Mat Min Exi Min Total Allies . | . . . . . Largest Group . | . . . . . Highest-Rated Group . | . . . . . Highest-Rated Ally . | . . . . . Total Orders . | . . . . . Ally Attacks . | . . . . . Total Damage . | . . . . . Kills . | . . . . . Allies Corrupted . | . . . . . Allies Melted . | . . . . . Intel | -11 -10 -10 -10 -9 ------- Run | Yrd Mat Min Exi Min Robot Analysis Total . | . . . . . Derelict Logs Recovered . | . . . . . Drone Launches . | . . . . . Drone Recoveries . | . . . . . Exploration | -11 -10 -10 -10 -9 ------------- Run | Yrd Mat Min Exi Min Turns Passed 2032 | 181 1220 87 526 18 Spaces Moved 1468 | 133 907 36 386 6 Core 2 | 2 . . . . Treads . | . . . . . Legs . | . . . . . Wheels 1466 | 131 907 36 386 6 Hover . | . . . . . Flight . | . . . . . Fastest Speed 50 | 50 90 135 135 135 Average Speed 112 | 91 105 135 135 135 Slowest Speed 135 | 100 135 135 135 135 Overloaded Moves . | . . . . . Propulsion Burnouts . | . . . . . Robots Hopped . | . . . . . Cave-ins Triggered 1 | . . . . 1 Exploration Rate (%) 35 | 6 93 5 65 6 Regions Visited 4 Branch Regions 3 Pre-discovered Areas . | . . . . . Known Exits Taken . | . . . . . Unknown Exits Taken 4 | 1 1 1 1 . Scrap Searched . | . . . . . Spaces Dug . | . . . . . Terrain Destroyed 27 | . . . . 27 Melee . | . . . . . Projectile . | . . . . . AOE 27 | . . . . 27 Terrain Rammed . | . . . . . Walls Destroyed . | . . . . . Machines Disabled . | . . . . . Actions | -11 -10 -10 -10 -9 --------- Run | Yrd Mat Min Exi Min Total 1699 | 176 1061 57 393 12 Wait 20 | . 18 2 . . Move 1464 | 132 906 35 385 6 Hop . | . . . . . Pick Up 55 | 16 32 3 4 . Fast Attach 13 | 6 7 . . . Attach 7 | 1 2 3 . 1 Detach 1 | . . 1 . . Swap 7 | 1 5 1 . . Drop 35 | 8 21 2 4 . Fire 97 | 12 70 10 . 5 Melee . | . . . . . Ram . | . . . . . Kick . | . . . . . Crush . | . . . . . Escape Stasis . | . . . . . Rewire . | . . . . . Trap . | . . . . . Miscellaneous . | . . . . . Route ------- -11/Scrapyard -10/Materials (discovered 5 exits: [*Mat x2] / [*Min x2] / [*Sub]) -10/Mines -10/Exiles -9/Mines (discovered 1 exit: [*Mat]) History --------- Turn | Location | Event 25 | -11/Scrapyard | Discovered new exit (range 13) 182 | -11/Scrapyard | Entered Materials 266 | -10/Materials | Discovered new exit (range 13) 309 | -10/Materials | Build established: Mutant 456 | -10/Materials | Discovered new exit (range 10) 614 | -10/Materials | Discovered new exit (range 13) 911 | -10/Materials | Core integrity fell below 50% 951 | -10/Materials | Discovered new exit (range 16) 1148 | -10/Materials | Discovered new exit (range 11) 1293 | -10/Materials | Core integrity fell below 20% 1402 | -10/Materials | Entered Mines 1482 | -10/Mines | Deemed a non-threat by the Exiles lab entrance 1483 | -10/Mines | Discovered new exit (range 5) 1489 | -10/Mines | Entered Exiles 1522 | -10/Exiles | Met 8R-AWN 1549 | -10/Exiles | Met EX-HEX 1611 | -10/Exiles | Met EX-BIN 1627 | -10/Exiles | Aligned with FarCom system 1629 | -10/Exiles | Given EX-Vault access code 1665 | -10/Exiles | Opened EX-Vault 1694 | -10/Exiles | Found Lightpack 2.0 1811 | -10/Exiles | Warned to stay clear of 0b10 Research branches 1848 | -10/Exiles | Met EX-DEC 2000 | -10/Exiles | Discovered new exit (range 12) 2015 | -10/Exiles | Left Exiles lab with Lightpack 2.0 2015 | -10/Exiles | Entered Mines 2017 | -9/Mines | Discovered new exit (range 11) 2034 | -9/Mines | Crushed by falling debris 2034 | -9/Mines | Smashed by cave-in Last Messages --------------- 02019_ Wheel destroyed. 02019_ Destroyed Flight Unit. 02019_ S-10 Pest destroyed. 02019_ K-01 Serf destroyed. 02020_ C-30 ARC bursts open, deploying its payload. 02020_ B-36 Bruiser unfolds itself. 02020_ G-34 Mercenary unfolds itself. 02020_ K-01 Serf collects debris. 02020_ U-05 Engineer builds a Wall. 02022_ G-34 Mercenary destroyed. 02024_ U-05 Engineer lays Concrete. 02024_ B-36 Bruiser destroyed. 02024_ K-01 Serf destroyed. 02024_ Destroyed Com. Wheel. 02026_ U-05 Engineer builds a Wall. 02034_ The unstable cave ceiling collapses. 02034_ Crushed by falling debris. 02034_ Lgt. Ion Engine destroyed. 02034_ System corrupted by crushing effect (+3). Map ----- +----------------------------------------------------+ | | | | | | | | | | | | | | | | | | | | | | | | | | | | | ???????????????????????????????????? | | ???????????????????????????????????? | | ????????#########??????????????????? | | ????????# ####???????????????? | | ????????# $ #???????????????? | | ????????# #??????????????????? | | ????????# #??????????????????? | | ????????# " ##?????????????????? | | ????????# #?????????????????? | | ????????#" ##?????????????????? | | ???????## ##?????????????????? | | ???????# @ ## ??????????????? | | ???????# # #????????????? | | ?????# = # ? #????????????? | | ?????# %=** ?? ????????????? | | ?????# < [=## ???????????? | | ?????# =% ?# # #??????????? | | ?????# ####?### ##????????????? | | ?????##### ##????????#?????????????? | | ?????????##????????????????????????? | | ???????????????????????????????????? | | ???????????????????????????????????? | | ???????????????????????????????????? | | ???????????????????????????????????? | | ???????????????????????????????????? | | ???????????????????????????????????? | | ???????????????????????????????????? | | ???????????????????????????????????? | | ???????????????????????????????????? | | ???????????????????????????????????? | | ???????????????????????????????????? | | ???????????????????????????????????? | | ???????????????????????????????????? | | ???????????????????????????????????? | | ???????????????????????????????????? | | ???????????????????????????????????? | +----------------------------------------------------+ Best States ------------- Heat Dissipation 25 Energy Generation 10 Energy Capacity 250 Matter Stores 300 Matter Capacity 300 Sight Range 16 Terrain Scan Range 16 Terrain Scan Density 10 Core Shielding 20 Evasion (%) 42 Targeting Accuracy 5 Item Schematics ----------------- None Robot Schematics ------------------ None Fabricated ------------ Nothing Alien Tech Used ----------------- None Achievements -------------- None Challenges ------------ None Game ------ Seed SignalSuperchargedCompactor Manual? 0 Play Time 00:24:41 Cumulative 39.7 hours Start 2024.04.11 @ 21:06:54 End 2024.04.11 @ 21:32:59 Sessions 1 Manual Loads 0 Difficulty Rogue Special Mode None Game No. 40 Rogue 40 Adventurer 0 Explorer 0 Win Type - Total 0 Types 0/0/0/0/0/0/0/0/0 Lore% 16 Gallery% 33 Achievement% 25 Wizard Run 0 Options --------- Layout 1 ASCII 0 Keyboard 1 Movement Vi Keybinds 0 Fullscreen 1 Font 24/Smallcaps Map View 50x35 Zoom Use 0% Tactical HUD 1 Map Filters NONE Filters NONE Steam 1 RUN: 851ff2f8-e136-4d3f-90db-63c2922d5d37